[Event "*** Titled Tuesday Blitz"]
[Site "Chess.com"]
[Date "2019.03.05"]
[Round "5"]
[White "Orest_Vovk"]
[Black "PawnEatingZombie"]
[Result "1-0"]
[WhiteElo "2150"]
[BlackElo "2130"]
[TimeControl "180+2"]
[EndTime "14:12:24 PST"]
[Termination "Orest_Vovk won by resignation"]

1. e4 {[%clk 0:03:01.9]} 1... e6 {[%clk 0:03:00.8]} 2. d4 {[%clk 0:03:02.1]}
2... d5 {[%clk 0:03:02.4]} 3. Bd3 {[%clk 0:03:03.2]} 3... c5 {[%clk 0:03:02.1]}
4. exd5 {[%clk 0:03:01.6]} 4... exd5 {[%clk 0:03:02.6]} 5. dxc5 {[%clk
0:03:00.8]} 5... Bxc5 {[%clk 0:02:58.6]} 6. Nf3 {[%clk 0:03:01.8]} 6... Nf6
{[%clk 0:02:59.2]} 7. O-O {[%clk 0:03:03]} 7... O-O {[%clk 0:02:59.9]} 8. h3
{[%clk 0:03:03.8]} 8... Nc6 {[%clk 0:03:00.8]} 9. Nc3 {[%clk 0:03:04.3]} 9...
Be6 {[%clk 0:02:54.7]} 10. Bg5 {[%clk 0:02:54.3]} 10... h6 {[%clk 0:02:46.7]}
11. Bh4 {[%clk 0:02:54.8]} 11... Be7 {[%clk 0:02:17.1]} 12. Re1 {[%clk
0:02:52.7]} 12... Re8 {[%clk 0:02:17]} 13. Nb5 {[%clk 0:02:44.5]} 13... a6
{[%clk 0:02:11.7]} 14. Nbd4 {[%clk 0:02:42.4]} 14... Qd7 {[%clk 0:02:13.1]} 15.
Nxe6 {[%clk 0:02:42.4]} 15... fxe6 {[%clk 0:02:13.2]} 16. Bg6 {[%clk 0:02:43.8]}
16... Rf8 {[%clk 0:02:12.4]} 17. Qe2 {[%clk 0:02:38.3]} 17... Nd8 {[%clk
0:02:04.6]} 18. Ne5 {[%clk 0:02:39]} 18... Qc7 {[%clk 0:01:54.3]} 19. Qd3 {[%clk
0:02:34]} 19... Bd6 {[%clk 0:01:51.6]} 20. Ng4 {[%clk 0:02:27.7]} 20... Nxg4
{[%clk 0:01:39.7]} 21. hxg4 {[%clk 0:02:29.6]} 21... Qd7 {[%clk 0:01:22.6]} 22.
f3 {[%clk 0:02:23.1]} 22... Bc5+ {[%clk 0:01:21.4]} 23. Bf2 {[%clk 0:02:16.6]}
23... Bxf2+ {[%clk 0:01:16.4]} 24. Kxf2 {[%clk 0:02:18.1]} 24... Nc6 {[%clk
0:01:10.7]} 25. c3 {[%clk 0:02:16.1]} 25... Qd6 {[%clk 0:01:03.6]} 26. Qe3
{[%clk 0:02:09.1]} 26... e5 {[%clk 0:01:01.4]} 27. Bf5 {[%clk 0:02:07.8]} 27...
Rae8 {[%clk 0:00:56.9]} 28. Rad1 {[%clk 0:02:08]} 28... d4 {[%clk 0:00:51.9]}
29. cxd4 {[%clk 0:02:06.7]} 29... Nxd4 {[%clk 0:00:48.5]} 30. Rd2 {[%clk
0:01:58.2]} 30... Qf6 {[%clk 0:00:36.7]} 31. Be4 {[%clk 0:01:38.1]} 31... Qh4+
{[%clk 0:00:37.2]} 32. Kg1 {[%clk 0:01:38.9]} 32... h5 {[%clk 0:00:37.3]} 33.
gxh5 {[%clk 0:01:35.2]} 33... Qxh5 {[%clk 0:00:36.5]} 34. Bd5+ {[%clk
0:01:17.1]} 34... Kh8 {[%clk 0:00:33.4]} 35. g4 {[%clk 0:01:16]} 35... Qh3
{[%clk 0:00:07.5]} 36. Rh2 {[%clk 0:01:16.1]} 36... Qxh2+ {[%clk 0:00:08.6]} 37.
Kxh2 {[%clk 0:01:16.6]} 37... Rd8 {[%clk 0:00:08.2]} 38. Be4 {[%clk 0:01:12.1]}
38... Rf6 {[%clk 0:00:06.9]} 39. Kg3 {[%clk 0:01:12.5]} 39... Rh6 {[%clk
0:00:07.5]} 40. Kg2 {[%clk 0:01:09.6]} 40... Ne6 {[%clk 0:00:07]} 41. g5 {[%clk
0:00:58.7]} 41... Nf4+ {[%clk 0:00:07.7]} 42. Qxf4 {[%clk 0:00:58.9]} 42... exf4
{[%clk 0:00:08.9]} 43. gxh6 {[%clk 0:00:59.9]} 43... gxh6 {[%clk 0:00:10.4]} 44.
Re2 {[%clk 0:01:00.5]} 44... Kg7 {[%clk 0:00:10.2]} 45. Kh3 {[%clk 0:01:01.7]}
45... b6 {[%clk 0:00:10.8]} 46. Kg4 {[%clk 0:01:02.7]} 46... Rf8 {[%clk
0:00:09.9]} 47. Rc2 {[%clk 0:01:02.7]} 47... Rf6 {[%clk 0:00:11]} 48. Rc7+
{[%clk 0:01:03.1]} 48... Kf8 {[%clk 0:00:12.3]} 49. Rc6 {[%clk 0:01:02.7]} 1-0

[Event "*** Titled Tuesday Blitz"]
[Site "Chess.com"]
[Date "2019.03.05"]
[Round "5"]
[White "monalize"]
[Black "BlackBoarder"]
[Result "0-1"]
[WhiteElo "2303"]
[BlackElo "2543"]
[TimeControl "180+2"]
[EndTime "14:12:28 PST"]
[Termination "BlackBoarder won on time"]

1. e4 {[%clk 0:03:01.9]} 1... e6 {[%clk 0:02:58.9]} 2. d4 {[%clk 0:03:01.7]}
2... d5 {[%clk 0:02:58.1]} 3. Nd2 {[%clk 0:03:03]} 3... c5 {[%clk 0:02:56.4]} 4.
exd5 {[%clk 0:03:01.2]} 4... Qxd5 {[%clk 0:02:58.3]} 5. Ngf3 {[%clk 0:03:01.7]}
5... cxd4 {[%clk 0:02:59.3]} 6. Bc4 {[%clk 0:03:02.3]} 6... Qd6 {[%clk
0:03:00.3]} 7. O-O {[%clk 0:03:03]} 7... Nf6 {[%clk 0:02:58.1]} 8. Nb3 {[%clk
0:03:01.1]} 8... Nc6 {[%clk 0:02:56.3]} 9. Re1 {[%clk 0:02:59]} 9... a6 {[%clk
0:02:53.4]} 10. Nbxd4 {[%clk 0:02:59]} 10... Nxd4 {[%clk 0:02:53.6]} 11. Nxd4
{[%clk 0:02:59.5]} 11... Qc7 {[%clk 0:02:53.4]} 12. Bf1 {[%clk 0:02:52.8]} 12...
Bd7 {[%clk 0:02:48.5]} 13. c4 {[%clk 0:02:46.3]} 13... Bd6 {[%clk 0:02:48.3]}
14. Nf5 {[%clk 0:02:18.7]} 14... Bxh2+ {[%clk 0:02:48.9]} 15. Kh1 {[%clk
0:02:19.4]} 15... O-O-O {[%clk 0:02:49.8]} 16. Nxg7 {[%clk 0:02:09]} 16... Be5
{[%clk 0:02:06.9]} 17. Nh5 {[%clk 0:02:03.6]} 17... Bc6 {[%clk 0:01:53.1]} 18.
Qe2 {[%clk 0:02:02.8]} 18... Nxh5 {[%clk 0:01:40.5]} 19. Qxh5 {[%clk 0:01:52]}
19... Bd4 {[%clk 0:01:32.6]} 20. Be3 {[%clk 0:01:44.2]} 20... Bxb2 {[%clk
0:01:13.3]} 21. Rab1 {[%clk 0:01:44.3]} 21... Bd4 {[%clk 0:01:11.8]} 22. c5
{[%clk 0:01:10.9]} 22... Bxe3 {[%clk 0:01:03.9]} 23. Rxe3 {[%clk 0:01:10.9]}
23... Rd2 {[%clk 0:01:04.3]} 24. Qg5 {[%clk 0:00:56.4]} 24... Rxf2 {[%clk
0:00:50.6]} 25. Reb3 {[%clk 0:00:52]} 25... f6 {[%clk 0:00:28.6]} 26. Qe3 {[%clk
0:00:48.1]} 26... Rxa2 {[%clk 0:00:17.1]} 27. Qxe6+ {[%clk 0:00:44.9]} 27... Qd7
{[%clk 0:00:13.8]} 28. Qxf6 {[%clk 0:00:18.1]} 28... Rg8 {[%clk 0:00:14.6]} 29.
Rxb7 {[%clk 0:00:14.3]} 29... Bxb7 {[%clk 0:00:12.4]} 30. c6 {[%clk 0:00:14.6]}
30... Qxc6 {[%clk 0:00:08.4]} 31. Qf5+ {[%clk 0:00:14.6]} 31... Kb8 {[%clk
0:00:09.1]} 32. Qf4+ {[%clk 0:00:11.8]} 32... Ka8 {[%clk 0:00:08.5]} 33. Qf3
{[%clk 0:00:06.6]} 33... Qxf3 {[%clk 0:00:07.7]} 34. gxf3 {[%clk 0:00:05.1]}
34... Bxf3+ {[%clk 0:00:09.6]} 0-1

[Event "*** Titled Tuesday Blitz"]
[Site "Chess.com"]
[Date "2019.03.05"]
[Round "5"]
[White "Barcelona_Guy"]
[Black "mlchen"]
[Result "1-0"]
[WhiteElo "2727"]
[BlackElo "2456"]
[TimeControl "180+2"]
[EndTime "14:12:29 PST"]
[Termination "Barcelona_Guy won by resignation"]

1. e4 {[%clk 0:03:01.9]} 1... e5 {[%clk 0:03:00.5]} 2. Nf3 {[%clk 0:02:49.6]}
2... Nc6 {[%clk 0:03:01]} 3. Bb5 {[%clk 0:02:50.3]} 3... a6 {[%clk 0:03:01.9]}
4. Ba4 {[%clk 0:02:50.8]} 4... Nf6 {[%clk 0:03:03]} 5. O-O {[%clk 0:02:48.2]}
5... Be7 {[%clk 0:03:03.9]} 6. Re1 {[%clk 0:02:48.5]} 6... b5 {[%clk 0:03:04.9]}
7. Bb3 {[%clk 0:02:48.9]} 7... d6 {[%clk 0:03:04.2]} 8. c3 {[%clk 0:02:49.3]}
8... O-O {[%clk 0:03:03.9]} 9. h3 {[%clk 0:02:49.6]} 9... Na5 {[%clk 0:03:01.7]}
10. Bc2 {[%clk 0:02:50.4]} 10... c5 {[%clk 0:03:02.2]} 11. d4 {[%clk 0:02:50.3]}
11... Qc7 {[%clk 0:03:02.7]} 12. Nbd2 {[%clk 0:02:47.1]} 12... cxd4 {[%clk
0:03:03.5]} 13. cxd4 {[%clk 0:02:45.2]} 13... Rd8 {[%clk 0:03:04.4]} 14. d5
{[%clk 0:02:41.5]} 14... Bd7 {[%clk 0:02:58.5]} 15. Bd3 {[%clk 0:02:33.6]} 15...
Nb7 {[%clk 0:02:42.6]} 16. Nb3 {[%clk 0:02:15.3]} 16... a5 {[%clk 0:02:39.1]}
17. Be3 {[%clk 0:02:16.4]} 17... a4 {[%clk 0:02:38.2]} 18. Rc1 {[%clk
0:02:17.4]} 18... Qb8 {[%clk 0:02:37.5]} 19. Nbd2 {[%clk 0:02:14.3]} 19... Rc8
{[%clk 0:02:26.8]} 20. Qe2 {[%clk 0:02:14.3]} 20... Nc5 {[%clk 0:02:27.6]} 21.
Bb1 {[%clk 0:02:10.8]} 21... Bd8 {[%clk 0:02:12.9]} 22. Nxe5 {[%clk 0:02:07.9]}
22... dxe5 {[%clk 0:01:51.3]} 23. Bxc5 {[%clk 0:02:08.3]} 23... Bb6 {[%clk
0:01:51.9]} 24. Qe3 {[%clk 0:02:03.5]} 24... Bxc5 {[%clk 0:01:48.7]} 25. Rxc5
{[%clk 0:02:05.4]} 25... Rxc5 {[%clk 0:01:42.7]} 26. Qxc5 {[%clk 0:02:07.3]}
26... Qb7 {[%clk 0:01:43.8]} 27. Nf3 {[%clk 0:02:08.8]} 27... Re8 {[%clk
0:01:16]} 28. Rc1 {[%clk 0:02:08.9]} 28... Rc8 {[%clk 0:01:11.4]} 29. Qe3 {[%clk
0:02:09.1]} 29... Rxc1+ {[%clk 0:01:06.9]} 30. Qxc1 {[%clk 0:02:11]} 30... Qb8
{[%clk 0:01:08.1]} 31. Qc3 {[%clk 0:02:09.7]} 31... b4 {[%clk 0:00:54]} 32. Qxe5
{[%clk 0:02:09.7]} 32... Qc8 {[%clk 0:00:54.9]} 33. Qf4 {[%clk 0:02:08.5]} 33...
h6 {[%clk 0:00:45.3]} 34. Qd2 {[%clk 0:02:06.7]} 34... Qc4 {[%clk 0:00:43.9]}
35. Ne5 {[%clk 0:01:56.6]} 35... Qb5 {[%clk 0:00:43.9]} 36. Bd3 {[%clk
0:01:54.1]} 36... Qb6 {[%clk 0:00:41]} 37. Qe3 {[%clk 0:01:34.3]} 37... Qc7
{[%clk 0:00:36.9]} 38. Nc4 {[%clk 0:01:26.2]} 38... Bb5 {[%clk 0:00:29.2]} 39.
b3 {[%clk 0:01:27.4]} 39... axb3 {[%clk 0:00:21.5]} 40. axb3 {[%clk 0:01:29.3]}
40... Bxc4 {[%clk 0:00:23]} 41. Bxc4 {[%clk 0:01:30.6]} 41... Nd7 {[%clk
0:00:24.3]} 42. f4 {[%clk 0:01:32.1]} 42... Qa5 {[%clk 0:00:23.4]} 43. e5 {[%clk
0:01:31.3]} 43... Kh8 {[%clk 0:00:20.3]} 44. e6 {[%clk 0:01:31.7]} 44... fxe6
{[%clk 0:00:21.6]} 45. dxe6 {[%clk 0:01:33.6]} 45... Qa1+ {[%clk 0:00:20.4]} 46.
Kh2 {[%clk 0:01:33.9]} 46... Nf6 {[%clk 0:00:21.9]} 47. e7 {[%clk 0:01:33.9]}
47... Qa8 {[%clk 0:00:20.9]} 48. Bb5 {[%clk 0:01:32.9]} 48... Ne8 {[%clk
0:00:19.3]} 49. Qe6 {[%clk 0:01:10.7]} 49... Qb8 {[%clk 0:00:16.6]} 50. Qe5
{[%clk 0:01:09.9]} 50... Qc8 {[%clk 0:00:13.9]} 51. Qh5 {[%clk 0:01:07.9]} 51...
Qb8 {[%clk 0:00:13.4]} 52. Qxe8+ {[%clk 0:01:07.5]} 1-0

[Event "*** Titled Tuesday Blitz"]
[Site "Chess.com"]
[Date "2019.03.05"]
[Round "5"]
[White "leoo2001"]
[Black "kuli4ik"]
[Result "1-0"]
[WhiteElo "2706"]
[BlackElo "2764"]
[TimeControl "180+2"]
[EndTime "14:12:34 PST"]
[Termination "leoo2001 won by resignation"]

1. e4 {[%clk 0:03:01.9]} 1... e6 {[%clk 0:02:59.4]} 2. d4 {[%clk 0:03:02.7]}
2... d5 {[%clk 0:03:00.3]} 3. Nc3 {[%clk 0:03:04.4]} 3... Be7 {[%clk 0:03:01.1]}
4. Nf3 {[%clk 0:03:02.6]} 4... Nf6 {[%clk 0:03:01.2]} 5. Bd3 {[%clk 0:02:58.4]}
5... c5 {[%clk 0:03:01.5]} 6. exd5 {[%clk 0:02:55.4]} 6... exd5 {[%clk
0:03:01.7]} 7. dxc5 {[%clk 0:02:55.1]} 7... O-O {[%clk 0:03:02.2]} 8. O-O {[%clk
0:02:54.9]} 8... Bxc5 {[%clk 0:03:03]} 9. Bg5 {[%clk 0:02:52.1]} 9... Be6 {[%clk
0:03:02.4]} 10. Ne2 {[%clk 0:02:46.8]} 10... Nc6 {[%clk 0:03:01.3]} 11. Nf4
{[%clk 0:02:43]} 11... h6 {[%clk 0:02:55.1]} 12. Bh4 {[%clk 0:02:42.5]} 12...
Bg4 {[%clk 0:02:47.5]} 13. h3 {[%clk 0:02:41.8]} 13... Bxf3 {[%clk 0:02:43.3]}
14. Qxf3 {[%clk 0:02:42.1]} 14... g5 {[%clk 0:02:41.5]} 15. Nh5 {[%clk
0:02:39.5]} 15... Nxh5 {[%clk 0:01:23.9]} 16. Qxh5 {[%clk 0:02:39.9]} 16... Qf6
{[%clk 0:01:19.2]} 17. Bg3 {[%clk 0:02:32.8]} 17... Nb4 {[%clk 0:01:19.4]} 18.
Rad1 {[%clk 0:02:15.8]} 18... Rad8 {[%clk 0:01:16]} 19. c3 {[%clk 0:02:11.9]}
19... Nxd3 {[%clk 0:01:09.5]} 20. Rxd3 {[%clk 0:02:12.9]} 20... Rfe8 {[%clk
0:01:08.1]} 21. h4 {[%clk 0:01:36.4]} 21... Kg7 {[%clk 0:00:55.8]} 22. Rfd1
{[%clk 0:01:34.4]} 22... d4 {[%clk 0:00:47.2]} 23. hxg5 {[%clk 0:01:27]} 23...
hxg5 {[%clk 0:00:45]} 24. b4 {[%clk 0:01:20.7]} 24... Bb6 {[%clk 0:00:15.5]} 25.
c4 {[%clk 0:01:19.5]} 25... a6 {[%clk 0:00:10.2]} 26. c5 {[%clk 0:01:19]} 26...
Ba7 {[%clk 0:00:11.3]} 27. Bd6 {[%clk 0:01:06.9]} 27... Re4 {[%clk 0:00:09.6]}
28. Rg3 {[%clk 0:01:05.4]} 28... g4 {[%clk 0:00:07]} 29. Rxg4+ {[%clk
0:01:05.2]} 29... Rxg4 {[%clk 0:00:08.9]} 30. Qxg4+ {[%clk 0:01:06.7]} 30... Qg6
{[%clk 0:00:09.4]} 31. Qxd4+ {[%clk 0:01:06]} 31... Kg8 {[%clk 0:00:09.8]} 32.
Re1 {[%clk 0:01:03.7]} 32... Bb8 {[%clk 0:00:09.5]} 33. Qh4 {[%clk 0:01:04.3]}
33... Rc8 {[%clk 0:00:08.9]} 34. Bxb8 {[%clk 0:01:04.9]} 34... Rxb8 {[%clk
0:00:09.7]} 35. Re3 {[%clk 0:01:04.3]} 35... Qb1+ {[%clk 0:00:09.7]} 36. Kh2
{[%clk 0:01:05.2]} 36... Qh7 {[%clk 0:00:10.8]} 37. Qxh7+ {[%clk 0:01:04.8]}
37... Kxh7 {[%clk 0:00:12.7]} 38. Re7 {[%clk 0:01:06.4]} 38... Kg6 {[%clk
0:00:14]} 39. Rc7 {[%clk 0:01:07.2]} 39... f6 {[%clk 0:00:12.9]} 40. Kg3 {[%clk
0:01:07.1]} 40... b6 {[%clk 0:00:14.3]} 41. c6 {[%clk 0:01:08.7]} 41... Re8
{[%clk 0:00:13.5]} 42. Rb7 {[%clk 0:01:07.9]} 42... b5 {[%clk 0:00:14.3]} 43. c7
{[%clk 0:01:08.8]} 43... Rc8 {[%clk 0:00:11.6]} 44. Kf4 {[%clk 0:01:10]} 44...
Kf7 {[%clk 0:00:12.2]} 45. Kf5 {[%clk 0:01:11.5]} 45... Ke7 {[%clk 0:00:13.1]}
46. g4 {[%clk 0:01:12.8]} 46... Kf7 {[%clk 0:00:13.7]} 47. f4 {[%clk 0:01:13.5]}
47... Ke7 {[%clk 0:00:15]} 48. Rb6 {[%clk 0:01:14.2]} 48... Rxc7 {[%clk
0:00:15.3]} 49. Re6+ {[%clk 0:01:15.6]} 49... Kd7 {[%clk 0:00:14.4]} 50. Rxa6
{[%clk 0:01:17]} 50... Rc4 {[%clk 0:00:14.7]} 51. a3 {[%clk 0:01:18]} 51... Kc7
{[%clk 0:00:15]} 1-0

[Event "*** Titled Tuesday Blitz"]
[Site "Chess.com"]
[Date "2019.03.05"]
[Round "5"]
[White "Ainahia"]
[Black "CaptainCasanova"]
[Result "1-0"]
[WhiteElo "2629"]
[BlackElo "2766"]
[TimeControl "180+2"]
[EndTime "14:12:37 PST"]
[Termination "Ainahia won by resignation"]

1. e4 {[%clk 0:03:01.9]} 1... c5 {[%clk 0:02:59.8]} 2. Nf3 {[%clk 0:03:02.1]}
2... Nc6 {[%clk 0:03:01.5]} 3. d4 {[%clk 0:03:00.6]} 3... cxd4 {[%clk
0:03:02.2]} 4. Nxd4 {[%clk 0:03:02.3]} 4... e5 {[%clk 0:03:04.1]} 5. Nb5 {[%clk
0:03:02.6]} 5... d6 {[%clk 0:03:05.2]} 6. c4 {[%clk 0:02:58.8]} 6... a6 {[%clk
0:03:06.5]} 7. N5c3 {[%clk 0:02:59.1]} 7... g6 {[%clk 0:03:08.1]} 8. Bd3 {[%clk
0:02:53.9]} 8... Bg7 {[%clk 0:03:07.6]} 9. O-O {[%clk 0:02:54.7]} 9... Nge7
{[%clk 0:03:07.4]} 10. Nd5 {[%clk 0:02:54.8]} 10... O-O {[%clk 0:03:05.2]} 11.
Nbc3 {[%clk 0:02:55.4]} 11... Nd4 {[%clk 0:03:05.3]} 12. Bg5 {[%clk 0:02:50.1]}
12... f6 {[%clk 0:03:05.9]} 13. Be3 {[%clk 0:02:51]} 13... Nxd5 {[%clk
0:02:59.9]} 14. Nxd5 {[%clk 0:02:49.5]} 14... Be6 {[%clk 0:02:56.2]} 15. Bxd4
{[%clk 0:02:41.2]} 15... exd4 {[%clk 0:02:56.9]} 16. Re1 {[%clk 0:02:25.4]}
16... Rc8 {[%clk 0:02:46.2]} 17. Rc1 {[%clk 0:02:21.4]} 17... Bh6 {[%clk
0:02:37.1]} 18. Rc2 {[%clk 0:02:19.7]} 18... Kg7 {[%clk 0:02:32.4]} 19. Bf1
{[%clk 0:02:18.4]} 19... Qa5 {[%clk 0:02:17.7]} 20. b4 {[%clk 0:01:52.6]} 20...
Qa4 {[%clk 0:02:18.5]} 21. Nb6 {[%clk 0:01:31.6]} 21... Qxb4 {[%clk 0:02:04.9]}
22. Nxc8 {[%clk 0:01:33]} 22... Rxc8 {[%clk 0:02:06.8]} 23. Qb1 {[%clk 0:01:30]}
23... Qxb1 {[%clk 0:01:41.6]} 24. Rxb1 {[%clk 0:01:31.9]} 24... b5 {[%clk
0:01:43.2]} 25. Rb4 {[%clk 0:00:36.3]} 25... f5 {[%clk 0:01:00.5]} 26. Bd3
{[%clk 0:00:21.1]} 26... fxe4 {[%clk 0:00:58]} 27. cxb5 {[%clk 0:00:22.4]} 27...
exd3 {[%clk 0:00:39.2]} 28. Rxc8 {[%clk 0:00:22.8]} 28... Bxc8 {[%clk
0:00:41.1]} 29. b6 {[%clk 0:00:21.4]} 29... d2 {[%clk 0:00:29.2]} 30. Rxd4
{[%clk 0:00:21.5]} 30... Kf6 {[%clk 0:00:12.9]} 31. f4 {[%clk 0:00:20.9]} 31...
Ke6 {[%clk 0:00:11]} 32. g3 {[%clk 0:00:21.5]} 32... d5 {[%clk 0:00:11.8]} 33.
Rxd2 {[%clk 0:00:22.4]} 33... Bf8 {[%clk 0:00:13.2]} 34. Re2+ {[%clk 0:00:21.4]}
34... Kd7 {[%clk 0:00:14.4]} 35. Rc2 {[%clk 0:00:21.6]} 35... Bd6 {[%clk
0:00:13.4]} 36. Kf2 {[%clk 0:00:22.9]} 36... Bb7 {[%clk 0:00:14.8]} 37. Ke3
{[%clk 0:00:24]} 37... Ke6 {[%clk 0:00:14.2]} 38. Kd4 {[%clk 0:00:24.6]} 38...
Kd7 {[%clk 0:00:15.4]} 39. a4 {[%clk 0:00:25.2]} 39... a5 {[%clk 0:00:15.6]} 40.
h4 {[%clk 0:00:22]} 40... Bb4 {[%clk 0:00:15.9]} 41. Rc7+ {[%clk 0:00:21.2]}
41... Kd6 {[%clk 0:00:17.4]} 42. Rxb7 {[%clk 0:00:22.6]} 1-0

[Event "*** Titled Tuesday Blitz"]
[Site "Chess.com"]
[Date "2019.03.05"]
[Round "5"]
[White "Muguet7"]
[Black "josmito10"]
[Result "1-0"]
[WhiteElo "2454"]
[BlackElo "2758"]
[TimeControl "180+2"]
[EndTime "14:12:42 PST"]
[Termination "Muguet7 won by resignation"]

1. d4 {[%clk 0:03:01.6]} 1... Nf6 {[%clk 0:02:59.4]} 2. c4 {[%clk 0:03:02.2]}
2... e6 {[%clk 0:02:58.4]} 3. Nf3 {[%clk 0:03:03.2]} 3... d5 {[%clk 0:02:57.4]}
4. Nc3 {[%clk 0:03:02.9]} 4... dxc4 {[%clk 0:02:58.1]} 5. e3 {[%clk 0:02:57.7]}
5... a6 {[%clk 0:02:58.7]} 6. a4 {[%clk 0:02:57.1]} 6... c5 {[%clk 0:02:59.5]}
7. Bxc4 {[%clk 0:02:58.3]} 7... cxd4 {[%clk 0:03:00.5]} 8. exd4 {[%clk
0:02:59.2]} 8... Be7 {[%clk 0:03:00.5]} 9. O-O {[%clk 0:03:00]} 9... O-O {[%clk
0:03:02.1]} 10. Qe2 {[%clk 0:03:00.9]} 10... Nc6 {[%clk 0:03:03.8]} 11. Rd1
{[%clk 0:03:01.8]} 11... Nb4 {[%clk 0:03:05.6]} 12. Bg5 {[%clk 0:03:02.5]} 12...
Nfd5 {[%clk 0:02:59.4]} 13. Bxe7 {[%clk 0:02:56.4]} 13... Nxe7 {[%clk
0:02:59.9]} 14. Qe4 {[%clk 0:02:39.3]} 14... Ned5 {[%clk 0:02:50.7]} 15. Ne5
{[%clk 0:02:16]} 15... b6 {[%clk 0:02:40.7]} 16. Bd3 {[%clk 0:01:55.2]} 16...
Nxd3 {[%clk 0:02:38.5]} 17. Rxd3 {[%clk 0:01:55.8]} 17... Bb7 {[%clk 0:02:34.7]}
18. Rh3 {[%clk 0:01:51.9]} 18... f5 {[%clk 0:02:25.4]} 19. Qf3 {[%clk
0:01:37.4]} 19... Ra7 {[%clk 0:01:58.1]} 20. Re1 {[%clk 0:01:28.2]} 20... Ba8
{[%clk 0:01:34.8]} 21. Qh5 {[%clk 0:01:19.4]} 21... Nf6 {[%clk 0:01:33.2]} 22.
Qh4 {[%clk 0:01:16.4]} 22... Re8 {[%clk 0:00:56.7]} 23. Nf3 {[%clk 0:01:14.7]}
23... h6 {[%clk 0:00:55]} 24. Qf4 {[%clk 0:01:05]} 24... Rd7 {[%clk 0:00:50.2]}
25. Rd1 {[%clk 0:00:45.6]} 25... g5 {[%clk 0:00:42.9]} 26. Qe5 {[%clk 0:00:43]}
26... Ng4 {[%clk 0:00:34.4]} 27. Qe2 {[%clk 0:00:39.2]} 27... Kg7 {[%clk
0:00:31.2]} 28. Ne5 {[%clk 0:00:39.2]} 28... Rxd4 {[%clk 0:00:28.3]} 29. Nxg4
{[%clk 0:00:39.7]} 29... Rxd1+ {[%clk 0:00:27]} 30. Nxd1 {[%clk 0:00:40.4]}
30... fxg4 {[%clk 0:00:28.4]} 31. Qxg4 {[%clk 0:00:38.6]} 31... Qd5 {[%clk
0:00:26.6]} 32. Ne3 {[%clk 0:00:38.6]} 32... Qe4 {[%clk 0:00:25.4]} 33. Qe2
{[%clk 0:00:36.3]} 33... Rd8 {[%clk 0:00:21.4]} 34. Qe1 {[%clk 0:00:21.7]} 34...
a5 {[%clk 0:00:20.1]} 35. Qc3+ {[%clk 0:00:21.8]} 35... e5 {[%clk 0:00:20.6]}
36. Qc7+ {[%clk 0:00:21.2]} 36... Kg6 {[%clk 0:00:21.2]} 37. Qxd8 {[%clk
0:00:22.3]} 37... Qb1+ {[%clk 0:00:20.5]} 38. Nf1 {[%clk 0:00:23.6]} 38... Bxg2
{[%clk 0:00:22.2]} 39. Kxg2 {[%clk 0:00:23.4]} 39... Qe4+ {[%clk 0:00:23.5]} 40.
Kg1 {[%clk 0:00:24.2]} 40... Qd4 {[%clk 0:00:18]} 41. Qxd4 {[%clk 0:00:24.7]}
41... exd4 {[%clk 0:00:19.5]} 42. Rd3 {[%clk 0:00:26.1]} 1-0

[Event "*** Titled Tuesday Blitz"]
[Site "Chess.com"]
[Date "2019.03.05"]
[Round "5"]
[White "JoachimMouhamad"]
[Black "Mikhail_Golubev"]
[Result "0-1"]
[WhiteElo "2314"]
[BlackElo "2450"]
[TimeControl "180+2"]
[EndTime "14:12:42 PST"]
[Termination "Mikhail_Golubev won on time"]

1. e4 {[%clk 0:03:01.8]} 1... c5 {[%clk 0:02:59.7]} 2. Nf3 {[%clk 0:03:02.5]}
2... d6 {[%clk 0:03:00.6]} 3. d4 {[%clk 0:03:03.9]} 3... Nf6 {[%clk 0:03:01.6]}
4. Nc3 {[%clk 0:03:05.1]} 4... cxd4 {[%clk 0:03:02.7]} 5. Nxd4 {[%clk 0:03:07]}
5... Nc6 {[%clk 0:03:03.2]} 6. f3 {[%clk 0:02:52.8]} 6... e5 {[%clk 0:03:01.9]}
7. Nb3 {[%clk 0:02:44.9]} 7... Be7 {[%clk 0:03:01.6]} 8. Be3 {[%clk 0:02:45.8]}
8... O-O {[%clk 0:03:01.6]} 9. Qd2 {[%clk 0:02:45.5]} 9... a5 {[%clk 0:03:02.1]}
10. a4 {[%clk 0:02:45.7]} 10... Be6 {[%clk 0:02:50.8]} 11. Bb5 {[%clk
0:02:37.9]} 11... Nb4 {[%clk 0:02:39.9]} 12. Qf2 {[%clk 0:01:55.2]} 12... d5
{[%clk 0:02:30.3]} 13. exd5 {[%clk 0:01:56.3]} 13... Nfxd5 {[%clk 0:02:26.4]}
14. Nxd5 {[%clk 0:01:56.8]} 14... Qxd5 {[%clk 0:02:14.3]} 15. Rd1 {[%clk
0:01:48.5]} 15... Nxc2+ {[%clk 0:02:12]} 16. Qxc2 {[%clk 0:01:47.6]} 16... Qxb3
{[%clk 0:02:12.9]} 17. Qxb3 {[%clk 0:01:45.4]} 17... Bxb3 {[%clk 0:02:13.5]} 18.
Rd7 {[%clk 0:01:47.3]} 18... Rfd8 {[%clk 0:02:05.7]} 19. Rxd8+ {[%clk
0:01:16.1]} 19... Rxd8 {[%clk 0:02:05.7]} 20. Ke2 {[%clk 0:01:17.7]} 20... Rc8
{[%clk 0:01:59]} 21. Rc1 {[%clk 0:01:09.5]} 21... Rxc1 {[%clk 0:01:58.6]} 22.
Bxc1 {[%clk 0:01:11.4]} 22... Bc5 {[%clk 0:01:53.9]} 23. Bd2 {[%clk 0:01:03.8]}
23... b6 {[%clk 0:01:53.9]} 24. Kd3 {[%clk 0:00:50]} 24... Kf8 {[%clk
0:01:49.8]} 25. Ke4 {[%clk 0:00:44.9]} 25... f6 {[%clk 0:01:42.3]} 26. f4 {[%clk
0:00:35.2]} 26... Bd4 {[%clk 0:01:25.7]} 27. fxe5 {[%clk 0:00:31.6]} 27... Bxe5
{[%clk 0:01:20.7]} 28. Be3 {[%clk 0:00:26.3]} 28... Bxb2 {[%clk 0:01:17.7]} 29.
Bxb6 {[%clk 0:00:27.4]} 29... Bc3 {[%clk 0:01:17.5]} 30. Bc5+ {[%clk 0:00:16.6]}
30... Kf7 {[%clk 0:01:17.9]} 31. Kd3 {[%clk 0:00:17.4]} 31... Be5 {[%clk
0:01:06.7]} 32. Bc4+ {[%clk 0:00:18.1]} 32... Bxc4+ {[%clk 0:01:05.5]} 33. Kxc4
{[%clk 0:00:20]} 33... Bxh2 {[%clk 0:01:02.6]} 34. Bb6 {[%clk 0:00:21.6]} 34...
Ke6 {[%clk 0:00:54.5]} 35. Kb5 {[%clk 0:00:22.8]} 35... Kd7 {[%clk 0:00:43.8]}
36. Kxa5 {[%clk 0:00:17]} 36... Kc6 {[%clk 0:00:39.6]} 37. Bd4 {[%clk
0:00:13.1]} 37... Bd6 {[%clk 0:00:25.9]} 38. Bc3 {[%clk 0:00:06.8]} 38... Be7
{[%clk 0:00:24.8]} 0-1